[Event "Late-Titled-Tuesday-Blitz-June-04-2024"]
[Site "Chess.com"]
[Date "2024.06.04"]
[Round "3"]
[White "Stanbad1"]
[Black "SaraciNderim"]
[Result "1/2-1/2"]
[WhiteElo "2660"]
[BlackElo "2896"]
[TimeControl "180+1"]
[EndTime "14:28:54 PDT"]
[Termination "Game drawn - insufficient material"]

1. d4 {[%clk 0:03:00.9]} 1... Nf6 {[%clk 0:02:59.4]} 2. Nc3 {[%clk 0:03:01.4]}
2... d5 {[%clk 0:02:58.9]} 3. Bf4 {[%clk 0:03:01.6]} 3... Bf5 {[%clk 0:02:58.5]}
4. e3 {[%clk 0:03:01.9]} 4... e6 {[%clk 0:02:57.9]} 5. Nf3 {[%clk 0:03:02.4]}
5... Bd6 {[%clk 0:02:57.3]} 6. Ne5 {[%clk 0:03:02.7]} 6... a6 {[%clk 0:02:56.8]}
7. g4 {[%clk 0:03:02.4]} 7... Bg6 {[%clk 0:02:48.4]} 8. h4 {[%clk 0:03:01.7]}
8... h6 {[%clk 0:02:44.2]} 9. Nxg6 {[%clk 0:03:01.5]} 9... fxg6 {[%clk
0:02:43.7]} 10. Bxd6 {[%clk 0:03:02]} 10... Qxd6 {[%clk 0:02:35.1]} 11. Bd3
{[%clk 0:03:01.2]} 11... Nc6 {[%clk 0:01:59.3]} 12. Bxg6+ {[%clk 0:02:59.5]}
12... Kd7 {[%clk 0:01:59.5]} 13. Bd3 {[%clk 0:02:59]} 13... Raf8 {[%clk
0:01:57.6]} 14. Qe2 {[%clk 0:02:58.6]} 14... Kc8 {[%clk 0:01:50.8]} 15. O-O-O
{[%clk 0:02:58.4]} 15... Kb8 {[%clk 0:01:51.2]} 16. g5 {[%clk 0:02:58.6]} 16...
hxg5 {[%clk 0:01:41.8]} 17. hxg5 {[%clk 0:02:59.5]} 17... Nd7 {[%clk 0:01:42.1]}
18. f4 {[%clk 0:02:58.5]} 18... Nb4 {[%clk 0:01:41.1]} 19. a3 {[%clk 0:02:54.3]}
19... Nxd3+ {[%clk 0:01:41.4]} 20. Qxd3 {[%clk 0:02:54.8]} 20... c5 {[%clk
0:01:41.8]} 21. dxc5 {[%clk 0:02:53.4]} 21... Nxc5 {[%clk 0:01:36.4]} 22. Qd4
{[%clk 0:02:52.9]} 22... Qe7 {[%clk 0:01:32.9]} 23. Qe5+ {[%clk 0:02:51.7]}
23... Qc7 {[%clk 0:01:24.7]} 24. Qxc7+ {[%clk 0:02:47.9]} 24... Kxc7 {[%clk
0:01:22.7]} 25. b4 {[%clk 0:02:48.4]} 25... Nd7 {[%clk 0:01:16]} 26. Ne2 {[%clk
0:02:36.3]} 26... Nb6 {[%clk 0:01:06.5]} 27. Nd4 {[%clk 0:02:35]} 27... Kd7
{[%clk 0:01:02.4]} 28. Nf3 {[%clk 0:02:33.5]} 28... Nc4 {[%clk 0:00:55.7]} 29.
Rxh8 {[%clk 0:02:11.3]} 29... Rxh8 {[%clk 0:00:54.6]} 30. e4 {[%clk 0:02:11.9]}
30... Rh3 {[%clk 0:00:52.6]} 31. Nd2 {[%clk 0:02:00]} 31... Nxa3 {[%clk
0:00:47.7]} 32. exd5 {[%clk 0:01:58.1]} 32... exd5 {[%clk 0:00:48.6]} 33. Nb3
{[%clk 0:01:56.4]} 33... Kd6 {[%clk 0:00:43.5]} 34. f5 {[%clk 0:01:35.4]} 34...
Rh2 {[%clk 0:00:40.6]} 35. Nd4 {[%clk 0:01:31.4]} 35... Rf2 {[%clk 0:00:40]} 36.
Re1 {[%clk 0:01:30.6]} 36... Rf4 {[%clk 0:00:35.9]} 37. Re6+ {[%clk 0:01:28.7]}
37... Kd7 {[%clk 0:00:35.6]} 38. c3 {[%clk 0:01:29.1]} 38... Nc4 {[%clk
0:00:29.6]} 39. Rg6 {[%clk 0:01:28.8]} 39... Rf1+ {[%clk 0:00:24.2]} 40. Kc2
{[%clk 0:01:27.8]} 40... Ne3+ {[%clk 0:00:24.5]} 41. Kd3 {[%clk 0:01:28.2]}
41... Nxf5 {[%clk 0:00:25.4]} 42. Nxf5 {[%clk 0:01:27.7]} 42... Rxf5 {[%clk
0:00:26.3]} 43. Rxg7+ {[%clk 0:01:28.3]} 43... Kc6 {[%clk 0:00:26.8]} 44. g6
{[%clk 0:01:28.8]} 44... Rg5 {[%clk 0:00:26.8]} 45. Rg8 {[%clk 0:01:27.8]} 45...
Rg4 {[%clk 0:00:25.3]} 46. g7 {[%clk 0:01:27.5]} 46... Kc7 {[%clk 0:00:21.4]}
47. Ke3 {[%clk 0:01:25.2]} 47... Kb6 {[%clk 0:00:21.7]} 48. Kd3 {[%clk 0:01:25]}
48... Kb5 {[%clk 0:00:21.2]} 49. Ke3 {[%clk 0:01:24.4]} 49... b6 {[%clk
0:00:20.6]} 50. Kd3 {[%clk 0:01:23.2]} 50... Rg3+ {[%clk 0:00:16.1]} 51. Kd4
{[%clk 0:01:23]} 51... Rg5 {[%clk 0:00:16.7]} 52. Kd3 {[%clk 0:01:21.9]} 52...
Rg4 {[%clk 0:00:16.9]} 53. Kc2 {[%clk 0:01:21.2]} 53... Rg3 {[%clk 0:00:12.8]}
54. Kd2 {[%clk 0:01:21]} 54... Ka4 {[%clk 0:00:11.7]} 55. Kc2 {[%clk 0:01:18.5]}
55... a5 {[%clk 0:00:10.2]} 56. bxa5 {[%clk 0:01:16.5]} 56... bxa5 {[%clk
0:00:11.1]} 57. Kd2 {[%clk 0:01:15.5]} 57... Rg5 {[%clk 0:00:06.8]} 58. Kd3
{[%clk 0:01:15.5]} 58... Rg4 {[%clk 0:00:07.3]} 59. Ke3 {[%clk 0:01:15.8]} 59...
Rg6 {[%clk 0:00:05.2]} 60. Kd4 {[%clk 0:01:15.6]} 60... Rg5 {[%clk 0:00:05.6]}
61. Kc5 {[%clk 0:01:15.9]} 61... Kb3 {[%clk 0:00:04.4]} 62. Rb8+ {[%clk
0:01:15.1]} 62... Kxc3 {[%clk 0:00:04.9]} 63. g8=Q {[%clk 0:01:15.8]} 63... Rxg8
{[%clk 0:00:04]} 64. Rxg8 {[%clk 0:01:16.7]} 64... d4 {[%clk 0:00:04.3]} 65. Rg4
{[%clk 0:00:53.1]} 65... d3 {[%clk 0:00:05.2]} 66. Rc4+ {[%clk 0:00:53.2]} 66...
Kb3 {[%clk 0:00:05.7]} 67. Rd4 {[%clk 0:00:39.3]} 67... Kc3 {[%clk 0:00:05.5]}
68. Rc4+ {[%clk 0:00:39.7]} 68... Kb3 {[%clk 0:00:05.7]} 69. Rd4 {[%clk
0:00:31.3]} 69... Kc3 {[%clk 0:00:06.1]} 70. Rxd3+ {[%clk 0:00:29.3]} 70... Kxd3
{[%clk 0:00:06.1]} 71. Kb5 {[%clk 0:00:29.9]} 71... a4 {[%clk 0:00:06.7]} 72.
Kxa4 {[%clk 0:00:30.1]} 1/2-1/2

[Event "Late-Titled-Tuesday-Blitz-June-04-2024"]
[Site "Chess.com"]
[Date "2024.06.04"]
[Round "3"]
[White "grzechu96"]
[Black "egnfanclub"]
[Result "1-0"]
[WhiteElo "2801"]
[BlackElo "2366"]
[TimeControl "180+1"]
[EndTime "14:28:54 PDT"]
[Termination "grzechu96 won by checkmate"]

1. e4 {[%clk 0:03:00.9]} 1... e5 {[%clk 0:02:58.3]} 2. Nf3 {[%clk 0:03:01]} 2...
Nc6 {[%clk 0:02:58.6]} 3. Bc4 {[%clk 0:03:01]} 3... Nf6 {[%clk 0:02:58.3]} 4. d3
{[%clk 0:03:01.3]} 4... Bc5 {[%clk 0:02:57.9]} 5. O-O {[%clk 0:03:01]} 5... d6
{[%clk 0:02:58.4]} 6. c3 {[%clk 0:03:00.3]} 6... a5 {[%clk 0:02:58.5]} 7. Re1
{[%clk 0:02:58.1]} 7... O-O {[%clk 0:02:58.3]} 8. h3 {[%clk 0:02:58]} 8... h6
{[%clk 0:02:51.9]} 9. Nbd2 {[%clk 0:02:49.1]} 9... Be6 {[%clk 0:02:47.4]} 10.
Bb5 {[%clk 0:02:49.1]} 10... Qb8 {[%clk 0:02:39.3]} 11. Bxc6 {[%clk 0:02:48.9]}
11... bxc6 {[%clk 0:02:38.3]} 12. d4 {[%clk 0:02:49.3]} 12... exd4 {[%clk
0:02:33.8]} 13. cxd4 {[%clk 0:02:50.2]} 13... Bb6 {[%clk 0:02:21.8]} 14. Qc2
{[%clk 0:02:29]} 14... Bd7 {[%clk 0:01:55.9]} 15. b3 {[%clk 0:02:28.2]} 15...
Re8 {[%clk 0:01:51.6]} 16. Bb2 {[%clk 0:02:28]} 16... a4 {[%clk 0:01:40.9]} 17.
b4 {[%clk 0:02:21.5]} 17... a3 {[%clk 0:01:34.2]} 18. Bc3 {[%clk 0:02:21.7]}
18... Qa7 {[%clk 0:01:19]} 19. Nb3 {[%clk 0:01:52.8]} 19... d5 {[%clk
0:01:08.4]} 20. e5 {[%clk 0:01:52.7]} 20... Ne4 {[%clk 0:01:08]} 21. Rxe4 {[%clk
0:01:48.8]} 21... Bf5 {[%clk 0:00:59.5]} 22. Nfd2 {[%clk 0:01:47.2]} 22... dxe4
{[%clk 0:00:52.2]} 23. Nxe4 {[%clk 0:01:43.6]} 23... Bg6 {[%clk 0:00:45.5]} 24.
Qe2 {[%clk 0:01:18.5]} 24... Rad8 {[%clk 0:00:44.2]} 25. Qg4 {[%clk 0:01:04.5]}
25... Kh8 {[%clk 0:00:34]} 26. Ng3 {[%clk 0:00:58.3]} 26... Rd5 {[%clk 0:00:28]}
27. h4 {[%clk 0:00:52.5]} 27... Red8 {[%clk 0:00:24.5]} 28. Re1 {[%clk
0:00:19.7]} 28... Bc2 {[%clk 0:00:24.2]} 29. Nh5 {[%clk 0:00:18.5]} 29... Bg6
{[%clk 0:00:21.5]} 30. Nf4 {[%clk 0:00:18]} 30... Bxd4 {[%clk 0:00:21.4]} 31.
Bxd4 {[%clk 0:00:16.8]} 31... Rxd4 {[%clk 0:00:21.9]} 32. Nxd4 {[%clk 0:00:17]}
32... Qxd4 {[%clk 0:00:21.2]} 33. Nxg6+ {[%clk 0:00:17.3]} 33... fxg6 {[%clk
0:00:22.1]} 34. Qxd4 {[%clk 0:00:14.6]} 34... Rxd4 {[%clk 0:00:23]} 35. e6
{[%clk 0:00:15.1]} 35... Rd8 {[%clk 0:00:22.8]} 36. Re3 {[%clk 0:00:13.8]} 36...
Re8 {[%clk 0:00:21.8]} 37. Rxa3 {[%clk 0:00:09.8]} 37... Rxe6 {[%clk 0:00:21.1]}
38. Rc3 {[%clk 0:00:09.3]} 38... Re4 {[%clk 0:00:20.1]} 39. a3 {[%clk
0:00:08.8]} 39... Re1+ {[%clk 0:00:19.7]} 40. Kh2 {[%clk 0:00:08.9]} 40... Ra1
{[%clk 0:00:20.4]} 41. Rxc6 {[%clk 0:00:05]} 41... Rxa3 {[%clk 0:00:20.6]} 42.
Rxc7 {[%clk 0:00:05.5]} 42... Rb3 {[%clk 0:00:21.1]} 43. Rc4 {[%clk 0:00:05.7]}
43... Kh7 {[%clk 0:00:20.7]} 44. f3 {[%clk 0:00:05.9]} 44... Rb2 {[%clk
0:00:20.5]} 45. Kg3 {[%clk 0:00:06.2]} 45... h5 {[%clk 0:00:20.9]} 46. Kh3
{[%clk 0:00:05.8]} 46... Kh6 {[%clk 0:00:21.4]} 47. Kg3 {[%clk 0:00:05.5]} 47...
Rb3 {[%clk 0:00:21.2]} 48. Kf4 {[%clk 0:00:05.5]} 48... Rb2 {[%clk 0:00:21.2]}
49. g3 {[%clk 0:00:05.1]} 49... Rb3 {[%clk 0:00:20.7]} 50. Ke4 {[%clk
0:00:05.5]} 50... Rb1 {[%clk 0:00:20.1]} 51. Kd5 {[%clk 0:00:03.9]} 51... Rf1
{[%clk 0:00:20.1]} 52. b5 {[%clk 0:00:02.1]} 52... Rxf3 {[%clk 0:00:20.1]} 53.
b6 {[%clk 0:00:02.5]} 53... Rb3 {[%clk 0:00:20.5]} 54. Kc6 {[%clk 0:00:02.7]}
54... Rxg3 {[%clk 0:00:19.9]} 55. Rb4 {[%clk 0:00:03.1]} 55... Rc3+ {[%clk
0:00:19.5]} 56. Kd7 {[%clk 0:00:03.4]} 56... Rd3+ {[%clk 0:00:19.4]} 57. Ke6
{[%clk 0:00:03.1]} 57... Re3+ {[%clk 0:00:19.3]} 58. Kd6 {[%clk 0:00:03.3]}
58... Rd3+ {[%clk 0:00:19.5]} 59. Kc5 {[%clk 0:00:03.3]} 59... Rd8 {[%clk
0:00:20]} 60. b7 {[%clk 0:00:03.6]} 60... Rb8 {[%clk 0:00:20]} 61. Kc6 {[%clk
0:00:03.8]} 61... g5 {[%clk 0:00:20.2]} 62. Kc7 {[%clk 0:00:04.1]} 62... Rf8
{[%clk 0:00:20]} 63. b8=Q {[%clk 0:00:03.5]} 63... Rxb8 {[%clk 0:00:20]} 64.
Kxb8 {[%clk 0:00:04.1]} 64... gxh4 {[%clk 0:00:20.9]} 65. Rxh4 {[%clk
0:00:03.9]} 65... g5 {[%clk 0:00:20.9]} 66. Ra4 {[%clk 0:00:04.8]} 66... h4
{[%clk 0:00:21.6]} 67. Kc7 {[%clk 0:00:05]} 67... Kh5 {[%clk 0:00:22.5]} 68. Kd6
{[%clk 0:00:05.2]} 68... g4 {[%clk 0:00:23.4]} 69. Ke5 {[%clk 0:00:05.6]} 69...
h3 {[%clk 0:00:24.3]} 70. Kf4 {[%clk 0:00:05.3]} 70... Kh4 {[%clk 0:00:25.2]}
71. Ra8 {[%clk 0:00:05.2]} 71... h2 {[%clk 0:00:26.1]} 72. Rh8# {[%clk
0:00:05.6]} 1-0

[Event "Late-Titled-Tuesday-Blitz-June-04-2024"]
[Site "Chess.com"]
[Date "2024.06.04"]
[Round "3"]
[White "NCchamp"]
[Black "SchmakAttack"]
[Result "1/2-1/2"]
[WhiteElo "2433"]
[BlackElo "2801"]
[TimeControl "180+1"]
[EndTime "14:28:56 PDT"]
[Termination "Game drawn - insufficient material"]

1. d4 {[%clk 0:02:59.8]} 1... Nf6 {[%clk 0:02:59.3]} 2. Bg5 {[%clk 0:02:59.6]}
2... g6 {[%clk 0:02:56.9]} 3. Bxf6 {[%clk 0:02:58.9]} 3... exf6 {[%clk
0:02:57.8]} 4. e3 {[%clk 0:02:57]} 4... d5 {[%clk 0:02:53.8]} 5. c4 {[%clk
0:02:56]} 5... dxc4 {[%clk 0:02:53.9]} 6. Bxc4 {[%clk 0:02:56.2]} 6... Bd6
{[%clk 0:02:54.3]} 7. Nc3 {[%clk 0:02:50.6]} 7... c6 {[%clk 0:02:54.3]} 8. Nf3
{[%clk 0:02:43.9]} 8... f5 {[%clk 0:02:52.3]} 9. O-O {[%clk 0:02:41.6]} 9... O-O
{[%clk 0:02:52.2]} 10. a4 {[%clk 0:02:29.2]} 10... Nd7 {[%clk 0:02:45.2]} 11. a5
{[%clk 0:02:27.8]} 11... Nf6 {[%clk 0:02:45.1]} 12. Qc2 {[%clk 0:02:01.9]} 12...
Qe7 {[%clk 0:02:43.5]} 13. Nd2 {[%clk 0:01:56.7]} 13... Kg7 {[%clk 0:02:35.6]}
14. h3 {[%clk 0:01:56.2]} 14... Bc7 {[%clk 0:02:16.6]} 15. Rfe1 {[%clk
0:01:53.7]} 15... Qd6 {[%clk 0:02:16.4]} 16. Nf1 {[%clk 0:01:53.6]} 16... Bd7
{[%clk 0:02:15.9]} 17. Red1 {[%clk 0:01:46.6]} 17... a6 {[%clk 0:01:59.6]} 18.
d5 {[%clk 0:01:23.3]} 18... c5 {[%clk 0:01:58]} 19. e4 {[%clk 0:00:59.8]} 19...
fxe4 {[%clk 0:01:35.4]} 20. Nxe4 {[%clk 0:00:59.2]} 20... Nxe4 {[%clk
0:01:36.2]} 21. Qxe4 {[%clk 0:00:58.6]} 21... Rfe8 {[%clk 0:01:36.1]} 22. Qf3
{[%clk 0:00:43.5]} 22... h5 {[%clk 0:01:28.9]} 23. Re1 {[%clk 0:00:43.7]} 23...
Rxe1 {[%clk 0:01:21.7]} 24. Rxe1 {[%clk 0:00:44.6]} 24... Bxa5 {[%clk
0:01:22.2]} 25. Rd1 {[%clk 0:00:44.5]} 25... b5 {[%clk 0:01:20.4]} 26. Bd3
{[%clk 0:00:44]} 26... c4 {[%clk 0:01:17]} 27. Be4 {[%clk 0:00:43.7]} 27... Re8
{[%clk 0:01:16.9]} 28. Ne3 {[%clk 0:00:34.6]} 28... Bb6 {[%clk 0:01:14.3]} 29.
Bc2 {[%clk 0:00:26.6]} 29... Bxe3 {[%clk 0:01:10]} 30. fxe3 {[%clk 0:00:27.5]}
30... Qf6 {[%clk 0:01:10.7]} 31. Qxf6+ {[%clk 0:00:17.7]} 31... Kxf6 {[%clk
0:01:11.6]} 32. Ra1 {[%clk 0:00:17.2]} 32... Bc8 {[%clk 0:01:07.7]} 33. Kf2
{[%clk 0:00:15.2]} 33... Ke5 {[%clk 0:01:06.3]} 34. e4 {[%clk 0:00:15.3]} 34...
Rd8 {[%clk 0:01:03.9]} 35. Ke3 {[%clk 0:00:14.8]} 35... Rd6 {[%clk 0:01:04.5]}
36. Rf1 {[%clk 0:00:12.1]} 36... f5 {[%clk 0:00:59.1]} 37. g4 {[%clk 0:00:09.2]}
37... hxg4 {[%clk 0:00:45.2]} 38. hxg4 {[%clk 0:00:10.1]} 38... fxe4 {[%clk
0:00:45.7]} 39. Bxe4 {[%clk 0:00:10.4]} 39... Bxg4 {[%clk 0:00:46.2]} 40. Rf8
{[%clk 0:00:07.3]} 40... Bf5 {[%clk 0:00:46.2]} 41. Re8+ {[%clk 0:00:07.1]}
41... Kf6 {[%clk 0:00:46.9]} 42. Kd4 {[%clk 0:00:06.9]} 42... Bxe4 {[%clk
0:00:42.5]} 43. Rxe4 {[%clk 0:00:05.1]} 43... Rd8 {[%clk 0:00:33.5]} 44. Kc5
{[%clk 0:00:04.9]} 44... Kf5 {[%clk 0:00:29.3]} 45. Re1 {[%clk 0:00:03.8]} 45...
g5 {[%clk 0:00:24.3]} 46. Kc6 {[%clk 0:00:04]} 46... g4 {[%clk 0:00:24.1]} 47.
d6 {[%clk 0:00:04.2]} 47... g3 {[%clk 0:00:21.4]} 48. Kc7 {[%clk 0:00:04.4]}
48... Rh8 {[%clk 0:00:20.4]} 49. d7 {[%clk 0:00:04.9]} 49... Rh7 {[%clk
0:00:13.2]} 50. Kc8 {[%clk 0:00:04.7]} 50... Rxd7 {[%clk 0:00:13.6]} 51. Kxd7
{[%clk 0:00:05.6]} 51... Kf4 {[%clk 0:00:13.8]} 52. Kc6 {[%clk 0:00:06]} 52...
Kf3 {[%clk 0:00:14.1]} 53. Kb6 {[%clk 0:00:05.9]} 53... Kf2 {[%clk 0:00:12.7]}
54. Rc1 {[%clk 0:00:05.2]} 54... g2 {[%clk 0:00:11.8]} 55. Kxa6 {[%clk
0:00:05.5]} 55... b4 {[%clk 0:00:12.1]} 56. Kb5 {[%clk 0:00:05.1]} 56... c3
{[%clk 0:00:12.4]} 57. bxc3 {[%clk 0:00:05.3]} 57... bxc3 {[%clk 0:00:08]} 58.
Kc4 {[%clk 0:00:05.3]} 58... g1=Q {[%clk 0:00:07.5]} 59. Rxg1 {[%clk 0:00:04.6]}
59... Kxg1 {[%clk 0:00:08.4]} 60. Kxc3 {[%clk 0:00:05]} 1/2-1/2

[Event "Late-Titled-Tuesday-Blitz-June-04-2024"]
[Site "Chess.com"]
[Date "2024.06.04"]
[Round "3"]
[White "FXDon77"]
[Black "Ykow"]
[Result "1-0"]
[WhiteElo "2871"]
[BlackElo "2570"]
[TimeControl "180+1"]
[EndTime "14:28:59 PDT"]
[Termination "FXDon77 won by resignation"]

1. e4 {[%clk 0:03:00.9]} 1... e5 {[%clk 0:02:48.8]} 2. Nf3 {[%clk 0:02:58.3]}
2... Nc6 {[%clk 0:02:40.2]} 3. Bc4 {[%clk 0:02:56.8]} 3... Nf6 {[%clk
0:02:41.1]} 4. d3 {[%clk 0:02:55.4]} 4... d5 {[%clk 0:02:41.1]} 5. exd5 {[%clk
0:02:55.1]} 5... Nxd5 {[%clk 0:02:42]} 6. O-O {[%clk 0:02:55]} 6... Nb6 {[%clk
0:02:42.2]} 7. Bb5 {[%clk 0:02:54.7]} 7... Bd6 {[%clk 0:02:42.3]} 8. Re1 {[%clk
0:02:53.9]} 8... f6 {[%clk 0:02:37.3]} 9. Nbd2 {[%clk 0:02:50.8]} 9... O-O
{[%clk 0:02:34.4]} 10. Ne4 {[%clk 0:02:49.7]} 10... Bg4 {[%clk 0:02:28.3]} 11.
Bxc6 {[%clk 0:02:45.9]} 11... bxc6 {[%clk 0:02:28]} 12. h3 {[%clk 0:02:46.6]}
12... Bh5 {[%clk 0:02:25.9]} 13. Ng3 {[%clk 0:02:46.6]} 13... Bg6 {[%clk
0:02:24.3]} 14. Nh4 {[%clk 0:02:41.5]} 14... f5 {[%clk 0:02:23.9]} 15. Nxg6
{[%clk 0:02:40.9]} 15... hxg6 {[%clk 0:02:24.8]} 16. Qf3 {[%clk 0:02:33.7]}
16... Nd5 {[%clk 0:02:17.4]} 17. c4 {[%clk 0:02:27]} 17... Nb4 {[%clk
0:02:16.6]} 18. Qe2 {[%clk 0:02:17.6]} 18... c5 {[%clk 0:02:15.8]} 19. b3 {[%clk
0:02:04.7]} 19... Qh4 {[%clk 0:02:10]} 20. Bb2 {[%clk 0:02:03.5]} 20... Rae8
{[%clk 0:02:10]} 21. Rad1 {[%clk 0:01:59.5]} 21... e4 {[%clk 0:01:51]} 22. dxe4
{[%clk 0:01:57.2]} 22... f4 {[%clk 0:01:51.2]} 23. Nh1 {[%clk 0:01:18.6]} 23...
f3 {[%clk 0:01:51]} 24. gxf3 {[%clk 0:01:13.6]} 24... Qxh3 {[%clk 0:01:39]} 25.
e5 {[%clk 0:01:12.2]} 25... Rf5 {[%clk 0:01:21.7]} 26. Ng3 {[%clk 0:01:04.2]}
26... Bxe5 {[%clk 0:01:19.3]} 27. Bxe5 {[%clk 0:00:55.5]} 27... Rfxe5 {[%clk
0:01:08.6]} 28. Qxe5 {[%clk 0:00:56.4]} 28... Rxe5 {[%clk 0:01:09.1]} 29. Rxe5
{[%clk 0:00:56.4]} 29... Nc6 {[%clk 0:01:05.8]} 30. Rxc5 {[%clk 0:00:33.5]}
30... Qe6 {[%clk 0:01:00.5]} 31. Ne4 {[%clk 0:00:33.8]} 31... g5 {[%clk
0:00:56.3]} 32. Nxg5 {[%clk 0:00:33.4]} 32... Qg6 {[%clk 0:00:56.3]} 33. f4
{[%clk 0:00:32.1]} 33... Qh5 {[%clk 0:00:53.1]} 34. Rd3 {[%clk 0:00:19.8]} 34...
Qe2 {[%clk 0:00:49.8]} 35. Re3 {[%clk 0:00:18.3]} 35... Qg4+ {[%clk 0:00:46.7]}
36. Rg3 {[%clk 0:00:16.9]} 36... Qd1+ {[%clk 0:00:46.8]} 37. Kg2 {[%clk
0:00:14.6]} 37... Ne7 {[%clk 0:00:47]} 38. Re5 {[%clk 0:00:14.3]} 38... Qd7
{[%clk 0:00:42.7]} 39. Rge3 {[%clk 0:00:12.9]} 39... Ng6 {[%clk 0:00:38.5]} 40.
Re8+ {[%clk 0:00:12.4]} 40... Nf8 {[%clk 0:00:38.9]} 41. Kg3 {[%clk 0:00:11.3]}
41... g6 {[%clk 0:00:27.1]} 42. Rb8 {[%clk 0:00:11.3]} 42... Kg7 {[%clk
0:00:24]} 43. Rbe8 {[%clk 0:00:11.2]} 43... Qd1 {[%clk 0:00:21.4]} 44. R3e7+
{[%clk 0:00:11]} 44... Kg8 {[%clk 0:00:21.4]} 45. Rf7 {[%clk 0:00:09.2]} 45...
Qg1+ {[%clk 0:00:16.4]} 46. Kf3 {[%clk 0:00:09.5]} 46... Qd1+ {[%clk 0:00:16.2]}
47. Kg2 {[%clk 0:00:08.7]} 47... Qg4+ {[%clk 0:00:16.5]} 48. Kf1 {[%clk
0:00:07]} 48... Qd1+ {[%clk 0:00:16.7]} 49. Re1 {[%clk 0:00:07]} 49... Qd3+
{[%clk 0:00:17.1]} 50. Kg2 {[%clk 0:00:07.3]} 50... Qd8 {[%clk 0:00:13.5]} 51.
Ree7 {[%clk 0:00:05.7]} 51... Qd1 {[%clk 0:00:11.2]} 52. Re3 {[%clk 0:00:03.7]}
52... Qg4+ {[%clk 0:00:10.4]} 53. Rg3 {[%clk 0:00:04.1]} 53... Qd1 {[%clk
0:00:09.6]} 54. Rxc7 {[%clk 0:00:03.9]} 54... Qd6 {[%clk 0:00:09.2]} 55. Rxa7
{[%clk 0:00:04]} 55... Qxf4 {[%clk 0:00:09.2]} 56. Rf7 {[%clk 0:00:03.2]} 56...
Qe5 {[%clk 0:00:08.7]} 57. Rff3 {[%clk 0:00:03.1]} 57... Qd6 {[%clk 0:00:08.6]}
58. Ne4 {[%clk 0:00:03.3]} 58... Qc6 {[%clk 0:00:09.5]} 59. Nf6+ {[%clk
0:00:03.4]} 59... Kg7 {[%clk 0:00:10.1]} 60. Nd5 {[%clk 0:00:04.3]} 60... Ne6
{[%clk 0:00:10]} 61. Rg4 {[%clk 0:00:03.9]} 61... Nc7 {[%clk 0:00:10.4]} 62.
Rfg3 {[%clk 0:00:04.3]} 62... Nxd5 {[%clk 0:00:10.6]} 63. Rxg6+ {[%clk
0:00:04.9]} 63... Qxg6 {[%clk 0:00:09.9]} 64. Rxg6+ {[%clk 0:00:05.8]} 64...
Kxg6 {[%clk 0:00:10.7]} 65. cxd5 {[%clk 0:00:06.6]} 65... Kf5 {[%clk 0:00:11.6]}
66. a4 {[%clk 0:00:06.8]} 66... Ke5 {[%clk 0:00:12.5]} 67. f4+ {[%clk
0:00:07.3]} 1-0